[Event "Early-Titled-Tuesday-Blitz-January-23-2024"]
[Site "Chess.com"]
[Date "2024.01.23"]
[Round "4"]
[White "Binary010"]
[Black "DenLaz"]
[Result "0-1"]
[WhiteElo "2887"]
[BlackElo "3087"]
[TimeControl "180+1"]
[EndTime "8:38:47 PST"]
[Termination "DenLaz won on time"]

1. e4 {[%clk 0:03:00.9]} 1... c5 {[%clk 0:02:59.8]} 2. Nf3 {[%clk 0:03:00.3]}
2... e6 {[%clk 0:03:00.5]} 3. d4 {[%clk 0:03:00.4]} 3... cxd4 {[%clk 0:03:01.4]}
4. Nxd4 {[%clk 0:03:01]} 4... Nc6 {[%clk 0:03:01.7]} 5. Nc3 {[%clk 0:03:01]}
5... Qc7 {[%clk 0:03:02.2]} 6. Be3 {[%clk 0:03:01]} 6... a6 {[%clk 0:03:02.2]}
7. a3 {[%clk 0:03:01.2]} 7... Nf6 {[%clk 0:03:01.6]} 8. f4 {[%clk 0:03:00.5]}
8... d6 {[%clk 0:03:00.8]} 9. Qf3 {[%clk 0:03:00.4]} 9... Bd7 {[%clk 0:03:01.2]}
10. O-O-O {[%clk 0:03:00.1]} 10... Rc8 {[%clk 0:03:01.9]} 11. g4 {[%clk
0:02:51]} 11... Nxd4 {[%clk 0:02:58.2]} 12. Rxd4 {[%clk 0:02:51.2]} 12... d5
{[%clk 0:02:51.4]} 13. exd5 {[%clk 0:02:43.7]} 13... Nxd5 {[%clk 0:02:49.7]} 14.
Rxd5 {[%clk 0:02:29.4]} 14... exd5 {[%clk 0:02:48.5]} 15. Bd4 {[%clk 0:02:29.5]}
15... Bd6 {[%clk 0:02:30.7]} 16. Bxg7 {[%clk 0:02:24.2]} 16... Rg8 {[%clk
0:02:29.7]} 17. Bd4 {[%clk 0:02:17.2]} 17... Bxf4+ {[%clk 0:02:16.2]} 18. Kb1
{[%clk 0:02:16.9]} 18... Bxg4 {[%clk 0:02:16.3]} 19. Qd3 {[%clk 0:02:06.2]}
19... Be6 {[%clk 0:02:05.9]} 20. Qxh7 {[%clk 0:02:05.8]} 20... Kd7 {[%clk
0:02:05.2]} 21. Bh3 {[%clk 0:01:51.9]} 21... Kc6 {[%clk 0:02:01.2]} 22. Rf1
{[%clk 0:01:39.3]} 22... Rcf8 {[%clk 0:01:37.9]} 23. b4 {[%clk 0:01:05.9]} 23...
b5 {[%clk 0:01:28.6]} 24. Qd3 {[%clk 0:00:54.7]} 24... Bxh2 {[%clk 0:01:19.9]}
25. Bc5 {[%clk 0:00:53.2]} 25... Rg3 {[%clk 0:01:13]} 26. Qd2 {[%clk 0:00:49.6]}
26... Rxh3 {[%clk 0:01:02.6]} 27. Bxf8 {[%clk 0:00:49.7]} 27... Be5 {[%clk
0:01:00.7]} 28. Ne2 {[%clk 0:00:48.1]} 28... Kb7 {[%clk 0:00:56]} 29. Bc5 {[%clk
0:00:48.3]} 29... Rxa3 {[%clk 0:00:43.9]} 30. Nd4 {[%clk 0:00:44.7]} 30... Bxd4
{[%clk 0:00:42.3]} 31. Qxd4 {[%clk 0:00:43]} 31... Rg3 {[%clk 0:00:42.7]} 32.
Kb2 {[%clk 0:00:35.8]} 32... Rg4 {[%clk 0:00:41.8]} 33. Qf6 {[%clk 0:00:35.2]}
33... a5 {[%clk 0:00:35.5]} 34. Ra1 {[%clk 0:00:32.4]} 34... a4 {[%clk
0:00:35.3]} 35. Ra3 {[%clk 0:00:29.4]} 35... Re4 {[%clk 0:00:35]} 36. Bd4 {[%clk
0:00:25.2]} 36... Rf4 {[%clk 0:00:28]} 37. Qh8 {[%clk 0:00:17.9]} 37... Qc4
{[%clk 0:00:26.1]} 38. Bc5 {[%clk 0:00:08.9]} 38... Rf2 {[%clk 0:00:04.3]} 39.
Rc3 {[%clk 0:00:03.5]} 39... a3+ {[%clk 0:00:04.5]} 40. Kxa3 {[%clk 0:00:01.5]}
40... Rh2 {[%clk 0:00:04.8]} 0-1

[Event "Early-Titled-Tuesday-Blitz-January-23-2024"]
[Site "Chess.com"]
[Date "2024.01.23"]
[Round "4"]
[White "JuniorJumper"]
[Black "artin10862"]
[Result "0-1"]
[WhiteElo "2563"]
[BlackElo "2825"]
[TimeControl "180+1"]
[EndTime "8:38:47 PST"]
[Termination "artin10862 won by checkmate"]

1. b3 {[%clk 0:03:00.9]} 1... a5 {[%clk 0:02:54.8]} 2. a3 {[%clk 0:02:59.7]}
2... Nf6 {[%clk 0:02:51.1]} 3. Bb2 {[%clk 0:03:00.1]} 3... d5 {[%clk 0:02:51.6]}
4. e3 {[%clk 0:02:59.7]} 4... c6 {[%clk 0:02:51.5]} 5. Nf3 {[%clk 0:02:59.8]}
5... Bf5 {[%clk 0:02:51.4]} 6. c4 {[%clk 0:02:53.5]} 6... e6 {[%clk 0:02:51.5]}
7. Nc3 {[%clk 0:02:53.9]} 7... Nbd7 {[%clk 0:02:51.3]} 8. d4 {[%clk 0:02:54.5]}
8... Bd6 {[%clk 0:02:51.4]} 9. Bd3 {[%clk 0:02:55.1]} 9... O-O {[%clk
0:02:47.3]} 10. O-O {[%clk 0:02:54.8]} 10... Ne4 {[%clk 0:02:46.3]} 11. Bxe4
{[%clk 0:02:42.3]} 11... dxe4 {[%clk 0:02:46]} 12. Nd2 {[%clk 0:02:42.6]} 12...
Nf6 {[%clk 0:02:44.3]} 13. f3 {[%clk 0:02:31.3]} 13... exf3 {[%clk 0:02:21]} 14.
Qxf3 {[%clk 0:02:29.6]} 14... Bg6 {[%clk 0:02:13.8]} 15. e4 {[%clk 0:02:12.2]}
15... e5 {[%clk 0:02:12.9]} 16. d5 {[%clk 0:02:12.4]} 16... Bc5+ {[%clk
0:02:07.4]} 17. Kh1 {[%clk 0:02:12.1]} 17... Bd4 {[%clk 0:02:03.5]} 18. Na4
{[%clk 0:01:43.9]} 18... Re8 {[%clk 0:01:45.3]} 19. Rfe1 {[%clk 0:01:33.1]}
19... Nd7 {[%clk 0:01:42.9]} 20. Qd3 {[%clk 0:01:20]} 20... Nc5 {[%clk
0:01:08.5]} 21. Nxc5 {[%clk 0:01:18.5]} 21... Bxb2 {[%clk 0:01:08.4]} 22. Rab1
{[%clk 0:00:50.8]} 22... Bxa3 {[%clk 0:00:51.7]} 23. Na4 {[%clk 0:00:45]} 23...
Bb4 {[%clk 0:00:46.2]} 24. Rf1 {[%clk 0:00:44.4]} 24... Rc8 {[%clk 0:00:41.9]}
25. Nf3 {[%clk 0:00:35.2]} 25... f6 {[%clk 0:00:31.3]} 26. Rbd1 {[%clk 0:00:35]}
26... cxd5 {[%clk 0:00:23.5]} 27. cxd5 {[%clk 0:00:34.7]} 27... b5 {[%clk
0:00:23.9]} 28. Qxb5 {[%clk 0:00:12.8]} 28... Bxe4 {[%clk 0:00:23.6]} 29. Nh4
{[%clk 0:00:05.4]} 29... Qd6 {[%clk 0:00:16.6]} 30. Qe2 {[%clk 0:00:05.2]} 30...
Bg6 {[%clk 0:00:12.1]} 31. Nxg6 {[%clk 0:00:05.4]} 31... hxg6 {[%clk 0:00:13]}
32. Qg4 {[%clk 0:00:05.8]} 32... f5 {[%clk 0:00:13.5]} 33. Qh4 {[%clk
0:00:04.6]} 33... e4 {[%clk 0:00:13.9]} 34. Qf2 {[%clk 0:00:02.7]} 34... Qe5
{[%clk 0:00:12.3]} 35. h3 {[%clk 0:00:02.6]} 35... Bd6 {[%clk 0:00:12.2]} 36.
Nb6 {[%clk 0:00:02.5]} 36... Qh2# {[%clk 0:00:11.5]} 0-1

[Event "Early-Titled-Tuesday-Blitz-January-23-2024"]
[Site "Chess.com"]
[Date "2024.01.23"]
[Round "4"]
[White "Iskusnyh"]
[Black "DvaHrasta"]
[Result "1-0"]
[WhiteElo "2653"]
[BlackElo "2422"]
[TimeControl "180+1"]
[EndTime "8:38:47 PST"]
[Termination "Iskusnyh won on time"]

1. d4 {[%clk 0:03:00.9]} 1... Nf6 {[%clk 0:02:59.4]} 2. c4 {[%clk 0:02:59.1]}
2... e6 {[%clk 0:02:59.5]} 3. g3 {[%clk 0:02:58.3]} 3... d5 {[%clk 0:02:58.1]}
4. Nf3 {[%clk 0:02:56.8]} 4... Bb4+ {[%clk 0:02:57.2]} 5. Bd2 {[%clk 0:02:56.3]}
5... Be7 {[%clk 0:02:57.2]} 6. Bg2 {[%clk 0:02:56.2]} 6... O-O {[%clk 0:02:57]}
7. O-O {[%clk 0:02:55.6]} 7... c6 {[%clk 0:02:57.2]} 8. Qc2 {[%clk 0:02:54.2]}
8... b5 {[%clk 0:02:57.3]} 9. c5 {[%clk 0:02:50.8]} 9... a5 {[%clk 0:02:57.3]}
10. Nc3 {[%clk 0:02:44.3]} 10... b4 {[%clk 0:02:54.9]} 11. Na4 {[%clk
0:02:43.3]} 11... Ba6 {[%clk 0:02:49.9]} 12. Bg5 {[%clk 0:02:20.7]} 12... h6
{[%clk 0:02:41.8]} 13. Bxf6 {[%clk 0:02:06.7]} 13... Bxf6 {[%clk 0:02:40.5]} 14.
Nb6 {[%clk 0:02:01.9]} 14... Ra7 {[%clk 0:02:37.4]} 15. a3 {[%clk 0:02:01]}
15... b3 {[%clk 0:02:26.8]} 16. Qxb3 {[%clk 0:01:46.5]} 16... Bxe2 {[%clk
0:02:21.1]} 17. Rfc1 {[%clk 0:01:34.2]} 17... Nd7 {[%clk 0:02:11.7]} 18. Nxd7
{[%clk 0:01:26.2]} 18... Qxd7 {[%clk 0:02:07.8]} 19. Qe3 {[%clk 0:01:25.8]}
19... Bxf3 {[%clk 0:01:58.5]} 20. Bxf3 {[%clk 0:01:25.5]} 20... Rb7 {[%clk
0:01:53.1]} 21. b3 {[%clk 0:01:24.9]} 21... Rfb8 {[%clk 0:01:51.9]} 22. Bd1
{[%clk 0:01:22.1]} 22... Qc7 {[%clk 0:01:46.2]} 23. f4 {[%clk 0:01:20.6]} 23...
g6 {[%clk 0:01:29.9]} 24. Bc2 {[%clk 0:01:17.4]} 24... Kg7 {[%clk 0:01:28.7]}
25. Rf1 {[%clk 0:01:11.3]} 25... Rh8 {[%clk 0:01:19.7]} 26. Rad1 {[%clk
0:01:10.7]} 26... Qb8 {[%clk 0:01:12.4]} 27. Kg2 {[%clk 0:01:09.7]} 27... Qa7
{[%clk 0:01:11.6]} 28. Qd3 {[%clk 0:01:02.3]} 28... h5 {[%clk 0:01:07.2]} 29.
Rde1 {[%clk 0:00:57.7]} 29... Re7 {[%clk 0:01:05.4]} 30. h3 {[%clk 0:00:51.8]}
30... Qc7 {[%clk 0:01:02.6]} 31. Re2 {[%clk 0:00:48.7]} 31... Qb8 {[%clk
0:00:58]} 32. Rf3 {[%clk 0:00:45.4]} 32... Qc7 {[%clk 0:00:55.6]} 33. Re5 {[%clk
0:00:43.4]} 33... Qb8 {[%clk 0:00:43.5]} 34. Rfe3 {[%clk 0:00:39.6]} 34... Bxe5
{[%clk 0:00:37.6]} 35. fxe5 {[%clk 0:00:39]} 35... Kf8 {[%clk 0:00:31.4]} 36.
Rf3 {[%clk 0:00:37.1]} 36... Ke8 {[%clk 0:00:30.9]} 37. Qa6 {[%clk 0:00:34.6]}
37... Qb7 {[%clk 0:00:28.5]} 38. Qxa5 {[%clk 0:00:33.9]} 38... Kd7 {[%clk
0:00:28.4]} 39. a4 {[%clk 0:00:31.4]} 39... Rb8 {[%clk 0:00:27.2]} 40. Qd2
{[%clk 0:00:30]} 40... Qb4 {[%clk 0:00:26.1]} 41. Qf2 {[%clk 0:00:29.9]} 41...
Rf8 {[%clk 0:00:21.6]} 42. Bxg6 {[%clk 0:00:29.7]} 42... fxg6 {[%clk 0:00:17.8]}
43. Rxf8 {[%clk 0:00:29.3]} 43... Qxb3 {[%clk 0:00:18]} 44. Ra8 {[%clk
0:00:26.8]} 44... Qd3 {[%clk 0:00:14]} 45. h4 {[%clk 0:00:25.8]} 45... Qe4+
{[%clk 0:00:13.1]} 46. Kh2 {[%clk 0:00:25.8]} 46... g5 {[%clk 0:00:06.6]} 47.
Qb2 {[%clk 0:00:24.6]} 1-0

[Event "Early-Titled-Tuesday-Blitz-January-23-2024"]
[Site "Chess.com"]
[Date "2024.01.23"]
[Round "4"]
[White "Alonmindlin"]
[Black "s4p0ud"]
[Result "1-0"]
[WhiteElo "2705"]
[BlackElo "2499"]
[TimeControl "180+1"]
[EndTime "8:38:48 PST"]
[Termination "Alonmindlin won on time"]

1. e4 {[%clk 0:03:00.9]} 1... c5 {[%clk 0:02:46.3]} 2. c3 {[%clk 0:03:00.4]}
2... g6 {[%clk 0:02:42.1]} 3. d4 {[%clk 0:02:59.9]} 3... cxd4 {[%clk 0:02:42.7]}
4. cxd4 {[%clk 0:03:00.8]} 4... d5 {[%clk 0:02:41.8]} 5. exd5 {[%clk 0:03:01.7]}
5... Nf6 {[%clk 0:02:40.8]} 6. Bc4 {[%clk 0:03:01.8]} 6... Bg7 {[%clk
0:02:36.7]} 7. Nc3 {[%clk 0:03:01.1]} 7... O-O {[%clk 0:02:31.1]} 8. Nge2 {[%clk
0:03:01.2]} 8... Nbd7 {[%clk 0:02:16.2]} 9. Nf4 {[%clk 0:03:00.7]} 9... Nb6
{[%clk 0:02:13.1]} 10. Bb3 {[%clk 0:03:00.7]} 10... a5 {[%clk 0:02:09.4]} 11. a3
{[%clk 0:02:59.3]} 11... Bf5 {[%clk 0:02:06.3]} 12. O-O {[%clk 0:02:58.8]} 12...
a4 {[%clk 0:02:04.2]} 13. Ba2 {[%clk 0:02:54.2]} 13... h6 {[%clk 0:02:01.4]} 14.
Re1 {[%clk 0:02:50.9]} 14... Qd7 {[%clk 0:01:59.9]} 15. h3 {[%clk 0:02:46.7]}
15... g5 {[%clk 0:01:58.2]} 16. Nh5 {[%clk 0:02:46.2]} 16... Nxh5 {[%clk
0:01:55.9]} 17. Qxh5 {[%clk 0:02:47.1]} 17... Bg6 {[%clk 0:01:48.5]} 18. Qg4
{[%clk 0:02:34.9]} 18... Qxg4 {[%clk 0:01:44.8]} 19. hxg4 {[%clk 0:02:34.9]}
19... Rfe8 {[%clk 0:01:42]} 20. Be3 {[%clk 0:02:32]} 20... Bd3 {[%clk 0:01:31]}
21. Rac1 {[%clk 0:01:38.6]} 21... Red8 {[%clk 0:01:16.4]} 22. d6 {[%clk
0:01:26.6]} 22... Rxd6 {[%clk 0:01:10.9]} 23. d5 {[%clk 0:01:26.5]} 23... Nd7
{[%clk 0:00:46]} 24. Red1 {[%clk 0:01:21.8]} 24... Ne5 {[%clk 0:00:43.8]} 25.
Bc5 {[%clk 0:01:19]} 25... Rd7 {[%clk 0:00:42.4]} 26. f3 {[%clk 0:01:14.6]}
26... Bg6 {[%clk 0:00:40.7]} 27. d6 {[%clk 0:00:58.2]} 27... exd6 {[%clk
0:00:37.3]} 28. Rxd6 {[%clk 0:00:58.4]} 28... Bf8 {[%clk 0:00:18.3]} 29. Rxd7
{[%clk 0:00:50.8]} 29... Bxc5+ {[%clk 0:00:17.2]} 30. Kh2 {[%clk 0:00:46.7]}
30... Nxd7 {[%clk 0:00:17.8]} 31. Nd5 {[%clk 0:00:46.7]} 31... Bd6+ {[%clk
0:00:17.2]} 32. Kh3 {[%clk 0:00:47.3]} 32... Kg7 {[%clk 0:00:15.1]} 33. Rd1
{[%clk 0:00:46.5]} 33... Be5 {[%clk 0:00:07.5]} 34. Ne7 {[%clk 0:00:44.5]} 34...
Nf6 {[%clk 0:00:07]} 35. Rc1 {[%clk 0:00:42.2]} 35... Bxb2 {[%clk 0:00:07]} 36.
Rc7 {[%clk 0:00:41.8]} 36... Ne8 {[%clk 0:00:05.1]} 37. Rxb7 {[%clk 0:00:41.8]}
37... Bxa3 {[%clk 0:00:05.7]} 38. Nxg6 {[%clk 0:00:41.5]} 38... Kxg6 {[%clk
0:00:06.3]} 39. Bxf7+ {[%clk 0:00:41.1]} 39... Kf6 {[%clk 0:00:06.5]} 40. Bd5
{[%clk 0:00:41.3]} 40... Nd6 {[%clk 0:00:06.2]} 41. Rh7 {[%clk 0:00:40.2]} 41...
Re8 {[%clk 0:00:04.9]} 42. Bc6 {[%clk 0:00:39.4]} 42... Rc8 {[%clk 0:00:04.6]}
43. Bxa4 {[%clk 0:00:39.1]} 43... Ke5 {[%clk 0:00:05.1]} 44. Rxh6 {[%clk
0:00:39.1]} 44... Rf8 {[%clk 0:00:04.9]} 45. Bd7 {[%clk 0:00:38.8]} 45... Bc1
{[%clk 0:00:05.2]} 46. Kh2 {[%clk 0:00:37]} 46... Kd5 {[%clk 0:00:05.7]} 47.
Be6+ {[%clk 0:00:36.9]} 47... Ke5 {[%clk 0:00:05.7]} 48. Bb3 {[%clk 0:00:36.8]}
48... Bf4+ {[%clk 0:00:06.3]} 49. g3 {[%clk 0:00:36.6]} 49... Bd2 {[%clk
0:00:05.8]} 50. Re6+ {[%clk 0:00:36.9]} 50... Kd4 {[%clk 0:00:05.2]} 51. Rxd6+
{[%clk 0:00:37.5]} 51... Kc3 {[%clk 0:00:05.9]} 52. Bd5 {[%clk 0:00:37.1]} 52...
Rxf3 {[%clk 0:00:06.4]} 53. Bxf3 {[%clk 0:00:36]} 1-0

[Event "Early-Titled-Tuesday-Blitz-January-23-2024"]
[Site "Chess.com"]
[Date "2024.01.23"]
[Round "4"]
[White "Chernov_Mikhail"]
[Black "Sajith_Peiris"]
[Result "1-0"]
[WhiteElo "2386"]
[BlackElo "2225"]
[TimeControl "180+1"]
[EndTime "8:38:48 PST"]
[Termination "Chernov_Mikhail won by resignation"]

1. e4 {[%clk 0:02:52.7]} 1... c6 {[%clk 0:02:59.8]} 2. d4 {[%clk 0:02:52.4]}
2... d5 {[%clk 0:02:59.1]} 3. exd5 {[%clk 0:02:53.3]} 3... cxd5 {[%clk
0:02:58.9]} 4. Bd3 {[%clk 0:02:54]} 4... Nf6 {[%clk 0:02:57.5]} 5. Bf4 {[%clk
0:02:53.3]} 5... Nc6 {[%clk 0:02:57.2]} 6. c3 {[%clk 0:02:53.5]} 6... Bg4 {[%clk
0:02:57]} 7. Nf3 {[%clk 0:02:53.8]} 7... e6 {[%clk 0:02:55.2]} 8. O-O {[%clk
0:02:52.7]} 8... Bd6 {[%clk 0:02:53.9]} 9. Bg5 {[%clk 0:02:45.8]} 9... h6 {[%clk
0:02:49.9]} 10. Bh4 {[%clk 0:02:45.7]} 10... O-O {[%clk 0:02:47.8]} 11. Nbd2
{[%clk 0:02:45.1]} 11... Be7 {[%clk 0:02:42.3]} 12. h3 {[%clk 0:02:44.4]} 12...
Bh5 {[%clk 0:02:40.8]} 13. Qc2 {[%clk 0:02:43]} 13... Rc8 {[%clk 0:02:37.9]} 14.
a3 {[%clk 0:02:28.8]} 14... Bxf3 {[%clk 0:02:35.5]} 15. Nxf3 {[%clk 0:02:27.7]}
15... a6 {[%clk 0:02:34.5]} 16. Qe2 {[%clk 0:02:23.7]} 16... b5 {[%clk
0:02:32.9]} 17. Rae1 {[%clk 0:02:22.9]} 17... Qb6 {[%clk 0:02:27.5]} 18. Ne5
{[%clk 0:02:21.9]} 18... Qb7 {[%clk 0:02:18.8]} 19. g4 {[%clk 0:02:13.3]} 19...
Nxe5 {[%clk 0:02:14.8]} 20. dxe5 {[%clk 0:02:05.7]} 20... Ne8 {[%clk 0:02:11.3]}
21. Bxe7 {[%clk 0:02:04.1]} 21... Qxe7 {[%clk 0:02:10.6]} 22. f4 {[%clk
0:02:05]} 22... Nc7 {[%clk 0:02:06.9]} 23. f5 {[%clk 0:02:03.9]} 23... a5 {[%clk
0:01:55.9]} 24. f6 {[%clk 0:01:57]} 24... Qc5+ {[%clk 0:01:54.9]} 25. Kh2 {[%clk
0:01:50.2]} 25... g6 {[%clk 0:01:53.7]} 26. Qc2 {[%clk 0:01:28.6]} 26... Kh7
{[%clk 0:01:48.3]} 27. h4 {[%clk 0:01:28.9]} 27... d4 {[%clk 0:00:37.5]} 28. h5
{[%clk 0:01:13.9]} 28... Rg8 {[%clk 0:00:35.5]} 29. hxg6+ {[%clk 0:01:00.4]}
29... fxg6 {[%clk 0:00:35.3]} 30. f7 {[%clk 0:00:57.5]} 30... Rg7 {[%clk
0:00:34.5]} 31. Rf6 {[%clk 0:00:55.6]} 31... Nd5 {[%clk 0:00:20.4]} 32. Rxg6
{[%clk 0:00:36.4]} 32... Rxg6 {[%clk 0:00:18.2]} 33. Bxg6+ {[%clk 0:00:37.3]}
33... Kg7 {[%clk 0:00:17.8]} 34. Bh5 {[%clk 0:00:30.8]} 34... Nf4 {[%clk
0:00:12]} 35. Qe4 {[%clk 0:00:18.1]} 35... Nxh5 {[%clk 0:00:11.4]} 36. gxh5
{[%clk 0:00:19]} 36... dxc3 {[%clk 0:00:10.2]} 37. Qg6+ {[%clk 0:00:17.1]} 37...
Kf8 {[%clk 0:00:10.5]} 38. Qxh6+ {[%clk 0:00:13.6]} 38... Kxf7 {[%clk
0:00:08.8]} 39. Rf1+ {[%clk 0:00:09.6]} 39... Ke7 {[%clk 0:00:08.7]} 40. Qg7+
{[%clk 0:00:09.2]} 1-0

[Event "Early-Titled-Tuesday-Blitz-January-23-2024"]
[Site "Chess.com"]
[Date "2024.01.23"]
[Round "4"]
[White "Chessdude1987"]
[Black "Shodikulov_Jamshid1990"]
[Result "0-1"]
[WhiteElo "2273"]
[BlackElo "2485"]
[TimeControl "180+1"]
[EndTime "8:38:51 PST"]
[Termination "Shodikulov_Jamshid1990 won by resignation"]

1. e4 {[%clk 0:03:00.9]} 1... c5 {[%clk 0:02:59.3]} 2. Nf3 {[%clk 0:03:00.9]}
2... e6 {[%clk 0:02:57.4]} 3. d4 {[%clk 0:02:56.7]} 3... cxd4 {[%clk 0:02:58.3]}
4. Nxd4 {[%clk 0:02:56.9]} 4... a6 {[%clk 0:02:59]} 5. Nc3 {[%clk 0:02:56.7]}
5... b5 {[%clk 0:02:59.7]} 6. g3 {[%clk 0:02:56.2]} 6... Bb7 {[%clk 0:02:55.3]}
7. Bg2 {[%clk 0:02:56.1]} 7... b4 {[%clk 0:02:54.5]} 8. Nce2 {[%clk 0:02:51.9]}
8... Nf6 {[%clk 0:02:54.5]} 9. Qd3 {[%clk 0:02:50.8]} 9... Qc7 {[%clk
0:02:53.2]} 10. O-O {[%clk 0:02:49.5]} 10... Nc6 {[%clk 0:02:49]} 11. Nxc6
{[%clk 0:02:45.2]} 11... Bxc6 {[%clk 0:02:49.9]} 12. Nd4 {[%clk 0:02:44.9]}
12... Bb7 {[%clk 0:02:50]} 13. Bd2 {[%clk 0:02:22.6]} 13... Be7 {[%clk
0:02:47.1]} 14. c3 {[%clk 0:02:17]} 14... bxc3 {[%clk 0:02:37.7]} 15. Bxc3
{[%clk 0:02:16.9]} 15... O-O {[%clk 0:02:37.6]} 16. Rfd1 {[%clk 0:02:00.6]}
16... Rfc8 {[%clk 0:02:30.2]} 17. e5 {[%clk 0:01:57.3]} 17... Nd5 {[%clk
0:02:27]} 18. Rac1 {[%clk 0:01:43]} 18... Qb6 {[%clk 0:02:14.8]} 19. Nf5 {[%clk
0:01:34.5]} 19... Bc5 {[%clk 0:02:06.4]} 20. Nd6 {[%clk 0:01:34.1]} 20... Bxd6
{[%clk 0:01:57.3]} 21. exd6 {[%clk 0:01:34.2]} 21... Nxc3 {[%clk 0:01:57.2]} 22.
Rxc3 {[%clk 0:01:34.1]} 22... Bxg2 {[%clk 0:01:55.2]} 23. Kxg2 {[%clk
0:01:31.3]} 23... Qxb2 {[%clk 0:01:39.6]} 24. Rdc1 {[%clk 0:01:29.9]} 24... Rxc3
{[%clk 0:01:37.1]} 25. Rxc3 {[%clk 0:01:29.4]} 25... Qxa2 {[%clk 0:01:33.5]} 26.
Rc7 {[%clk 0:01:11.9]} 26... Qa4 {[%clk 0:01:32.7]} 27. Qc3 {[%clk 0:01:03.5]}
27... h5 {[%clk 0:01:17.9]} 28. Rc4 {[%clk 0:00:59.7]} 28... Qb5 {[%clk
0:01:14.4]} 29. Rc5 {[%clk 0:00:59]} 29... Qb7+ {[%clk 0:01:14]} 30. Kh3 {[%clk
0:00:54.4]} 30... g6 {[%clk 0:01:09.8]} 31. Rc7 {[%clk 0:00:49.3]} 31... Qb5
{[%clk 0:01:06.2]} 32. Kg2 {[%clk 0:00:43.5]} 32... Qd5+ {[%clk 0:01:05.2]} 33.
Kf1 {[%clk 0:00:43.1]} 33... Qxd6 {[%clk 0:01:02.4]} 34. Rc4 {[%clk 0:00:41.1]}
34... a5 {[%clk 0:00:59.2]} 35. Rd4 {[%clk 0:00:40.1]} 35... Qa6+ {[%clk
0:00:57.9]} 36. Kg1 {[%clk 0:00:39.7]} 36... Qb7 {[%clk 0:00:55.7]} 37. Qd2
{[%clk 0:00:38.6]} 37... d5 {[%clk 0:00:54.7]} 38. g4 {[%clk 0:00:38.2]} 38...
hxg4 {[%clk 0:00:53.1]} 39. Rxg4 {[%clk 0:00:36.7]} 39... Qb1+ {[%clk
0:00:51.5]} 40. Kg2 {[%clk 0:00:35.9]} 40... Qf5 {[%clk 0:00:52.1]} 41. Rh4
{[%clk 0:00:28.4]} 41... Qf6 {[%clk 0:00:52.7]} 42. Qh6 {[%clk 0:00:27.3]} 42...
Qg7 {[%clk 0:00:52.9]} 43. Qc1 {[%clk 0:00:23.5]} 43... a4 {[%clk 0:00:45.4]}
44. Qc6 {[%clk 0:00:23.1]} 44... Qf8 {[%clk 0:00:38.1]} 45. Qc3 {[%clk
0:00:20.4]} 45... Qg7 {[%clk 0:00:36.4]} 46. Qc6 {[%clk 0:00:20.4]} 46... Rf8
{[%clk 0:00:27.5]} 47. Qxa4 {[%clk 0:00:20.1]} 47... Qf6 {[%clk 0:00:27.2]} 48.
Qg4 {[%clk 0:00:19.2]} 48... Kg7 {[%clk 0:00:27.1]} 49. Rh3 {[%clk 0:00:18.6]}
49... Qf5 {[%clk 0:00:25.8]} 50. Qh4 {[%clk 0:00:16.3]} 50... Qe4+ {[%clk
0:00:26.3]} 51. Qxe4 {[%clk 0:00:16.3]} 51... dxe4 {[%clk 0:00:27.2]} 52. Rh4
{[%clk 0:00:15.8]} 52... f5 {[%clk 0:00:27.6]} 53. Kg3 {[%clk 0:00:16.2]} 53...
Kf6 {[%clk 0:00:28]} 54. Kf4 {[%clk 0:00:15.7]} 54... g5+ {[%clk 0:00:28]} 0-1

[Event "Early-Titled-Tuesday-Blitz-January-23-2024"]
[Site "Chess.com"]
[Date "2024.01.23"]
[Round "4"]
[White "hmatyi07"]
[Black "verrbaa"]
[Result "0-1"]
[WhiteElo "2187"]
[BlackElo "2492"]
[TimeControl "180+1"]
[EndTime "8:38:52 PST"]
[Termination "verrbaa won by resignation"]

1. e4 {[%clk 0:03:00.9]} 1... c5 {[%clk 0:02:55.8]} 2. Nf3 {[%clk 0:03:00.3]}
2... e6 {[%clk 0:02:55.8]} 3. d4 {[%clk 0:02:59.3]} 3... cxd4 {[%clk 0:02:56.1]}
4. Nxd4 {[%clk 0:03:00.1]} 4... Nc6 {[%clk 0:02:56.5]} 5. Nc3 {[%clk 0:02:58.2]}
5... d6 {[%clk 0:02:54.6]} 6. g4 {[%clk 0:02:54.5]} 6... Nge7 {[%clk 0:02:53.6]}
7. Be3 {[%clk 0:02:50.8]} 7... Nxd4 {[%clk 0:02:48.1]} 8. Bxd4 {[%clk
0:02:50.1]} 8... Nc6 {[%clk 0:02:48.1]} 9. Bb5 {[%clk 0:02:42.4]} 9... Bd7
{[%clk 0:02:45]} 10. Bxc6 {[%clk 0:02:42.2]} 10... Bxc6 {[%clk 0:02:44.9]} 11.
f3 {[%clk 0:02:41.2]} 11... b5 {[%clk 0:02:30]} 12. Qd2 {[%clk 0:02:36.2]} 12...
h5 {[%clk 0:02:23.8]} 13. O-O-O {[%clk 0:02:25.7]} 13... hxg4 {[%clk 0:02:16.3]}
14. fxg4 {[%clk 0:02:24.4]} 14... Be7 {[%clk 0:02:16.9]} 15. Kb1 {[%clk
0:01:52.4]} 15... b4 {[%clk 0:02:15.2]} 16. Ne2 {[%clk 0:01:46.3]} 16... e5
{[%clk 0:02:15]} 17. Be3 {[%clk 0:01:21.8]} 17... Bxe4 {[%clk 0:02:11.4]} 18.
Rhe1 {[%clk 0:01:10.9]} 18... Rc8 {[%clk 0:02:10.9]} 19. Rc1 {[%clk 0:00:59.9]}
19... Rxh2 {[%clk 0:01:41.3]} 20. Qxb4 {[%clk 0:00:56.5]} 20... d5 {[%clk
0:01:41.5]} 21. Qa4+ {[%clk 0:00:45.2]} 21... Qd7 {[%clk 0:01:41.4]} 22. Qxa7
{[%clk 0:00:35]} 22... Qxa7 {[%clk 0:01:24.2]} 23. Bxa7 {[%clk 0:00:35.9]} 23...
Bb4 {[%clk 0:01:24.2]} 24. Nc3 {[%clk 0:00:29]} 24... Bxc3 {[%clk 0:01:16]} 25.
bxc3 {[%clk 0:00:28.2]} 25... f6 {[%clk 0:01:06.7]} 26. Kb2 {[%clk 0:00:22.4]}
26... Rc7 {[%clk 0:01:01.7]} 27. Be3 {[%clk 0:00:20.5]} 27... Rb7+ {[%clk
0:01:02]} 28. Ka1 {[%clk 0:00:20.8]} 28... Bxc2 {[%clk 0:00:55]} 29. Rh1 {[%clk
0:00:17.9]} 29... Re2 {[%clk 0:00:48.3]} 30. Rhe1 {[%clk 0:00:16.8]} 30... Rxe1
{[%clk 0:00:45.1]} 31. Rxe1 {[%clk 0:00:17.7]} 31... Bd3 {[%clk 0:00:43.9]} 32.
g5 {[%clk 0:00:17.6]} 32... Kf7 {[%clk 0:00:41.3]} 33. gxf6 {[%clk 0:00:17.5]}
33... gxf6 {[%clk 0:00:42.2]} 34. a3 {[%clk 0:00:13.9]} 34... Ke6 {[%clk
0:00:42.2]} 35. Ka2 {[%clk 0:00:13.3]} 35... Bc4+ {[%clk 0:00:41.5]} 36. Ka1
{[%clk 0:00:12.4]} 36... Rb3 {[%clk 0:00:41.5]} 37. Bc5 {[%clk 0:00:11.9]} 37...
Rxc3 {[%clk 0:00:41.1]} 38. Bb4 {[%clk 0:00:11.6]} 38... Rc2 {[%clk 0:00:40.6]}
39. Rg1 {[%clk 0:00:08.8]} 39... d4 {[%clk 0:00:28.7]} 40. Kb1 {[%clk
0:00:08.6]} 40... Re2 {[%clk 0:00:26]} 41. a4 {[%clk 0:00:07.4]} 41... e4 {[%clk
0:00:20.3]} 42. a5 {[%clk 0:00:07.5]} 42... d3 {[%clk 0:00:17.3]} 43. a6 {[%clk
0:00:07.6]} 43... Bxa6 {[%clk 0:00:15.8]} 44. Bc3 {[%clk 0:00:04.8]} 44... e3
{[%clk 0:00:13.1]} 45. Rf1 {[%clk 0:00:04.7]} 45... Rf2 {[%clk 0:00:12.3]} 46.
Rxf2 {[%clk 0:00:03.7]} 46... exf2 {[%clk 0:00:13.2]} 0-1